{"text_format":"1","workbook":"xlsx","n_sheets":4,"sheets":["Worksheet","Measure Code","Export","Version"],"not_rendered":{"charts":0,"images":0,"macros":1,"external_links":0,"defined_names":2,"comments":0,"pivot_tables":0},"unopened":[],"bounds":{"document_bytes":16777216,"sheet_cells":100000,"rows_first":2000,"rows_last":500,"rows_between":2000,"halvings":0,"cell_chars":16384,"cell_head_chars":4096},"cells_cut":0,"cells_raw":0,"read":"whole","date_system":"1900"}

{"sheet":"Worksheet","index":0,"n_rows":38,"n_cols":28,"rows_kept":38,"cut":false,"hidden":false,"merged":[[7,1,7,2],[7,5,7,6],[2,1,2,3],[6,1,6,2],[4,1,4,3],[11,10,11,11],[10,26,10,27],[2,5,2,8],[6,5,6,8],[1,10,1,12],[2,10,2,12],[7,15,7,16],[1,17,1,19],[1,20,1,22],[2,17,5,19],[2,20,5,22]]}
["Refrigeration Doors/Covers Application"]
["Customer Information",null,null,null,null,null,null,null,null,null,"Total Units Committed:",null,null,{"$f":"SUM(I14:I38)","v":0},null,null,null,"Pre-Inspection Notes",null,null,"Post-Inspection Notes"]
["Name",null,null,null,"Address",null,null,null,null,null,"Total Units Installed:",null,null,{"$f":"SUM(J14:J38)","v":0}]
["Premise",null,"Application",null,"Date"]
["Contact"]
["Contractor/Vendor Information"]
["Name",null,null,null,"Address"]
["Contact",null,null," ","Phone",null,null,null,null,null,null,null,null,null,"Inspection Type"]
["Enhanced Incentive Eligibility"]
[false,false]
[false,false,null,null,null,null,null,null,null,null,null,null,null,null,null,null,null,null,null,null,null,null,null,null,null,"Date","Inspector/Sign-off"]
[null,"Incentive amounts below are estimated based on standard program incentives. These values and any additional enhancements will be verified by the Program Manager prior to approval.",null,null,null,null,null,null,null,null,"Totals:",null,{"$f":"SUM(M14:M38)","v":0},0,0,0,0,0,0,0,0,0,0,0]
["Measure Code","New or Replaced","Type\nC - Aluminum Night Covers\nD - Energy Efficient Doors","Manufacturer","Model","Total Width of Protected Opening\n(linear feet)","Refrigeration Case Temperature\n(Low, Medium, or High)","Hours Store is Closed per Day","Quantity Committed\n(for aluminum night covers always enter 1)","Quantity Installed\n(for aluminum night covers always enter 1)","Incentive per Unit","Enhanced Incentive per Unit","Total Committed Incentive","Total\nInstalled Incentive","Electric  Demand Committed Savings kW","Electric Demand Installed Savings kW","Electric Annual Committed Savings kWh","Electric Annual Installed Savings kWh","Electric Lifetime Committed Savings kWh","Electric Lifetime Installed Savings kWh","Heating Annual Committed Savings \nTherms","Heating Annual Installed Savings Therms","Heating Lifetime Committed Savings \nTherms","Heating Lifetime Installed Savings \nTherms","FOUND PRE TYPE","Count","FOUND POST TYPE","count"]
[null,null,{"$f":"IF(A14=\"\",\"\",VLOOKUP(A14,MeasureCode_Lookup,2,FALSE))","v":""},null,null,null,null,null,null,null,{"$f":"IF(A14=\"\",0,VLOOKUP(A14,MeasureCode_Lookup,4,FALSE)*IF(C14=\"C\",F14,1))","v":0},{"$f":"IF(OR($A$10=TRUE,$A$11=TRUE,$B$10=TRUE,$B$11=TRUE)=TRUE,K14,0)","v":0},{"$f":"I14*(K14+L14)","v":0},{"$f":"J14*(K14+L14)","v":0},{"$f":"IF(K14=0,0,kwsavings(F14,G14,H14,C14))","v":0},{"$f":"IF(K14=0,0,kwsavings(F14,G14,H14,C14))","v":0},{"$f":"IF(K14=0,0,kWhSAvings(F14,G14,H14,C14))","v":0},{"$f":"IF(K14=0,0,kWhSAvings(F14,G14,H14,C14))","v":0},{"$f":"IF(K14=0,0,Q14*VLOOKUP(A14,MeasureCode_Lookup,6,FALSE))","v":0},{"$f":"IF(K14=0,0,R14*VLOOKUP(A14,MeasureCode_Lookup,6,FALSE))","v":0},{"$f":"thermsavings(F14,G14,H14,C14)","v":0},{"$f":"thermsavings(F14,G14,H14,C14)","v":0},{"$f":"IF(K14=0,0,U14*VLOOKUP(A14,MeasureCode_Lookup,6,FALSE))","v":0},{"$f":"IF(K14=0,0,V14*VLOOKUP(A14,MeasureCode_Lookup,6,FALSE))","v":0}]
[null,null,"",null,null,null,null,null,null,null,0,{"$f":"IF(OR($A$10=TRUE,$A$11=TRUE,$B$10=TRUE,$B$11=TRUE)=TRUE,K15,0)","v":0},{"$f":"I15*(K15+L15)","v":0},{"$f":"J15*(K15+L15)","v":0},{"$f":"IF(K15=0,0,kwsavings(F15,G15,H15,C15))","v":0},{"$f":"IF(K15=0,0,kwsavings(F15,G15,H15,C15))","v":0},{"$f":"IF(K15=0,0,kWhSAvings(F15,G15,H15,C15))","v":0},{"$f":"IF(K15=0,0,kWhSAvings(F15,G15,H15,C15))","v":0},0,0,{"$f":"thermsavings(F15,G15,H15,C15)","v":0},{"$f":"thermsavings(F15,G15,H15,C15)","v":0},0,0]
[null,null,"",null,null,null,null,null,null,null,0,0,0,0,{"$f":"IF(K16=0,0,kwsavings(F16,G16,H16,C16))","v":0},{"$f":"IF(K16=0,0,kwsavings(F16,G16,H16,C16))","v":0},{"$f":"IF(K16=0,0,kWhSAvings(F16,G16,H16,C16))","v":0},{"$f":"IF(K16=0,0,kWhSAvings(F16,G16,H16,C16))","v":0},0,0,0,0,0,0]
[null,null,"",null,null,null,null,null,null,null,0,0,0,0,{"$f":"IF(K17=0,0,kwsavings(F17,G17,H17,C17))","v":0},{"$f":"IF(K17=0,0,kwsavings(F17,G17,H17,C17))","v":0},{"$f":"IF(K17=0,0,kWhSAvings(F17,G17,H17,C17))","v":0},{"$f":"IF(K17=0,0,kWhSAvings(F17,G17,H17,C17))","v":0},0,0,0,0,0,0]
[null,null,"",null,null,null,null,null,null,null,0,0,0,0,{"$f":"IF(K18=0,0,kwsavings(F18,G18,H18,C18))","v":0},{"$f":"IF(K18=0,0,kwsavings(F18,G18,H18,C18))","v":0},{"$f":"IF(K18=0,0,kWhSAvings(F18,G18,H18,C18))","v":0},{"$f":"IF(K18=0,0,kWhSAvings(F18,G18,H18,C18))","v":0},0,0,0,0,0,0]
[null,null,"",null,null,null,null,null,null,null,0,0,0,0,{"$f":"IF(K19=0,0,kwsavings(F19,G19,H19,C19))","v":0},{"$f":"IF(K19=0,0,kwsavings(F19,G19,H19,C19))","v":0},{"$f":"IF(K19=0,0,kWhSAvings(F19,G19,H19,C19))","v":0},{"$f":"IF(K19=0,0,kWhSAvings(F19,G19,H19,C19))","v":0},0,0,0,0,0,0]
[null,null,"",null,null,null,null,null,null,null,0,0,0,0,{"$f":"IF(K20=0,0,kwsavings(F20,G20,H20,C20))","v":0},{"$f":"IF(K20=0,0,kwsavings(F20,G20,H20,C20))","v":0},{"$f":"IF(K20=0,0,kWhSAvings(F20,G20,H20,C20))","v":0},{"$f":"IF(K20=0,0,kWhSAvings(F20,G20,H20,C20))","v":0},0,0,0,0,0,0]
[null,null,"",null,null,null,null,null,null,null,0,0,0,0,{"$f":"IF(K21=0,0,kwsavings(F21,G21,H21,C21))","v":0},{"$f":"IF(K21=0,0,kwsavings(F21,G21,H21,C21))","v":0},{"$f":"IF(K21=0,0,kWhSAvings(F21,G21,H21,C21))","v":0},{"$f":"IF(K21=0,0,kWhSAvings(F21,G21,H21,C21))","v":0},0,0,0,0,0,0]
[null,null,"",null,null,null,null,null,null,null,0,0,0,0,{"$f":"IF(K22=0,0,kwsavings(F22,G22,H22,C22))","v":0},{"$f":"IF(K22=0,0,kwsavings(F22,G22,H22,C22))","v":0},{"$f":"IF(K22=0,0,kWhSAvings(F22,G22,H22,C22))","v":0},{"$f":"IF(K22=0,0,kWhSAvings(F22,G22,H22,C22))","v":0},0,0,0,0,0,0]
[null,null,"",null,null,null,null,null,null,null,0,0,0,0,{"$f":"IF(K23=0,0,kwsavings(F23,G23,H23,C23))","v":0},{"$f":"IF(K23=0,0,kwsavings(F23,G23,H23,C23))","v":0},{"$f":"IF(K23=0,0,kWhSAvings(F23,G23,H23,C23))","v":0},{"$f":"IF(K23=0,0,kWhSAvings(F23,G23,H23,C23))","v":0},0,0,0,0,0,0]
[null,null,"",null,null,null,null,null,null,null,0,0,0,0,{"$f":"IF(K24=0,0,kwsavings(F24,G24,H24,C24))","v":0},{"$f":"IF(K24=0,0,kwsavings(F24,G24,H24,C24))","v":0},{"$f":"IF(K24=0,0,kWhSAvings(F24,G24,H24,C24))","v":0},{"$f":"IF(K24=0,0,kWhSAvings(F24,G24,H24,C24))","v":0},0,0,0,0,0,0]
[null,null,"",null,null,null,null,null,null,null,0,0,0,0,{"$f":"IF(K25=0,0,kwsavings(F25,G25,H25,C25))","v":0},{"$f":"IF(K25=0,0,kwsavings(F25,G25,H25,C25))","v":0},{"$f":"IF(K25=0,0,kWhSAvings(F25,G25,H25,C25))","v":0},{"$f":"IF(K25=0,0,kWhSAvings(F25,G25,H25,C25))","v":0},0,0,0,0,0,0]
[null,null,"",null,null,null,null,null,null,null,0,0,0,0,{"$f":"IF(K26=0,0,kwsavings(F26,G26,H26,C26))","v":0},{"$f":"IF(K26=0,0,kwsavings(F26,G26,H26,C26))","v":0},{"$f":"IF(K26=0,0,kWhSAvings(F26,G26,H26,C26))","v":0},{"$f":"IF(K26=0,0,kWhSAvings(F26,G26,H26,C26))","v":0},0,0,0,0,0,0]
[null,null,"",null,null,null,null,null,null,null,0,0,0,0,{"$f":"IF(K27=0,0,kwsavings(F27,G27,H27,C27))","v":0},{"$f":"IF(K27=0,0,kwsavings(F27,G27,H27,C27))","v":0},{"$f":"IF(K27=0,0,kWhSAvings(F27,G27,H27,C27))","v":0},{"$f":"IF(K27=0,0,kWhSAvings(F27,G27,H27,C27))","v":0},0,0,0,0,0,0]
[null,null,"",null,null,null,null,null,null,null,0,0,0,0,{"$f":"IF(K28=0,0,kwsavings(F28,G28,H28,C28))","v":0},{"$f":"IF(K28=0,0,kwsavings(F28,G28,H28,C28))","v":0},{"$f":"IF(K28=0,0,kWhSAvings(F28,G28,H28,C28))","v":0},{"$f":"IF(K28=0,0,kWhSAvings(F28,G28,H28,C28))","v":0},0,0,0,0,0,0]
[null,null,"",null,null,null,null,null,null,null,0,0,0,0,{"$f":"IF(K29=0,0,kwsavings(F29,G29,H29,C29))","v":0},{"$f":"IF(K29=0,0,kwsavings(F29,G29,H29,C29))","v":0},{"$f":"IF(K29=0,0,kWhSAvings(F29,G29,H29,C29))","v":0},{"$f":"IF(K29=0,0,kWhSAvings(F29,G29,H29,C29))","v":0},0,0,0,0,0,0]
[null,null,"",null,null,null,null,null,null,null,0,0,0,0,{"$f":"IF(K30=0,0,kwsavings(F30,G30,H30,C30))","v":0},{"$f":"IF(K30=0,0,kwsavings(F30,G30,H30,C30))","v":0},{"$f":"IF(K30=0,0,kWhSAvings(F30,G30,H30,C30))","v":0},{"$f":"IF(K30=0,0,kWhSAvings(F30,G30,H30,C30))","v":0},0,0,0,0,0,0]
[null,null,"",null,null,null,null,null,null,null,0,0,0,0,{"$f":"IF(K31=0,0,kwsavings(F31,G31,H31,C31))","v":0},{"$f":"IF(K31=0,0,kwsavings(F31,G31,H31,C31))","v":0},{"$f":"IF(K31=0,0,kWhSAvings(F31,G31,H31,C31))","v":0},{"$f":"IF(K31=0,0,kWhSAvings(F31,G31,H31,C31))","v":0},0,0,0,0,0,0]
[null,null,"",null,null,null,null,null,null,null,0,0,0,0,{"$f":"IF(K32=0,0,kwsavings(F32,G32,H32,C32))","v":0},{"$f":"IF(K32=0,0,kwsavings(F32,G32,H32,C32))","v":0},{"$f":"IF(K32=0,0,kWhSAvings(F32,G32,H32,C32))","v":0},{"$f":"IF(K32=0,0,kWhSAvings(F32,G32,H32,C32))","v":0},0,0,0,0,0,0]
[null,null,"",null,null,null,null,null,null,null,0,0,0,0,{"$f":"IF(K33=0,0,kwsavings(F33,G33,H33,C33))","v":0},{"$f":"IF(K33=0,0,kwsavings(F33,G33,H33,C33))","v":0},{"$f":"IF(K33=0,0,kWhSAvings(F33,G33,H33,C33))","v":0},{"$f":"IF(K33=0,0,kWhSAvings(F33,G33,H33,C33))","v":0},0,0,0,0,0,0]
[null,null,"",null,null,null,null,null,null,null,0,0,0,0,{"$f":"IF(K34=0,0,kwsavings(F34,G34,H34,C34))","v":0},{"$f":"IF(K34=0,0,kwsavings(F34,G34,H34,C34))","v":0},{"$f":"IF(K34=0,0,kWhSAvings(F34,G34,H34,C34))","v":0},{"$f":"IF(K34=0,0,kWhSAvings(F34,G34,H34,C34))","v":0},0,0,0,0,0,0]
[null,null,"",null,null,null,null,null,null,null,0,0,0,0,{"$f":"IF(K35=0,0,kwsavings(F35,G35,H35,C35))","v":0},{"$f":"IF(K35=0,0,kwsavings(F35,G35,H35,C35))","v":0},{"$f":"IF(K35=0,0,kWhSAvings(F35,G35,H35,C35))","v":0},{"$f":"IF(K35=0,0,kWhSAvings(F35,G35,H35,C35))","v":0},0,0,0,0,0,0]
[null,null,"",null,null,null,null,null,null,null,0,0,0,0,{"$f":"IF(K36=0,0,kwsavings(F36,G36,H36,C36))","v":0},{"$f":"IF(K36=0,0,kwsavings(F36,G36,H36,C36))","v":0},{"$f":"IF(K36=0,0,kWhSAvings(F36,G36,H36,C36))","v":0},{"$f":"IF(K36=0,0,kWhSAvings(F36,G36,H36,C36))","v":0},0,0,0,0,0,0]
[null,null,"",null,null,null,null,null,null,null,0,0,0,0,{"$f":"IF(K37=0,0,kwsavings(F37,G37,H37,C37))","v":0},{"$f":"IF(K37=0,0,kwsavings(F37,G37,H37,C37))","v":0},{"$f":"IF(K37=0,0,kWhSAvings(F37,G37,H37,C37))","v":0},{"$f":"IF(K37=0,0,kWhSAvings(F37,G37,H37,C37))","v":0},0,0,0,0,0,0]
[null,null,"",null,null,null,null,null,null,null,0,0,0,0,{"$f":"IF(K38=0,0,kwsavings(F38,G38,H38,C38))","v":0},{"$f":"IF(K38=0,0,kwsavings(F38,G38,H38,C38))","v":0},{"$f":"IF(K38=0,0,kWhSAvings(F38,G38,H38,C38))","v":0},{"$f":"IF(K38=0,0,kWhSAvings(F38,G38,H38,C38))","v":0},0,0,0,0,0,0]

{"sheet":"Measure Code","index":1,"n_rows":3,"n_cols":7,"rows_kept":3,"cut":false,"hidden":true,"merged":[]}
["Measure Code","Type","Description","Incentive per Unit","Incentive Units","Measure Life","Measure Type"]
["RD1","C","Aluminum Night Cover",3.5,"Linear Foot",5,251]
["RD2","D","Energy Efficient Door",100,"Door",12,307]

{"sheet":"Export","index":2,"n_rows":26,"n_cols":23,"rows_kept":26,"cut":false,"hidden":true,"merged":[]}
["Measure Type","Manufacturer","Model","Capacity/Size","Capacity/Size Units","EER Efficiency","SEER Efficiency","Incentive Per Unit","Quantity","Annual Electricity Savings","Peak Demand Reduction","Lifetime Electricity Savings","Annual Gas Savings","Lifetime Gas Savings","Efficiency- other","Efficiency- other-type","Measure ID removed","Quantity Installed","Project in UEZ","Project in OZ","Municipality","K-12 School","Enhanced Incentive per Unit"]
[{"$f":"IF(Worksheet!C14=\"C\",251,IF(Worksheet!C14=\"D\",307,\"\"))","v":""},{"$f":"Worksheet!D14","v":0},{"$f":"Worksheet!E14","v":0},null,null,null,null,{"$f":"Worksheet!K14","v":0},{"$f":"IF(ISBLANK(Worksheet!I14)=FALSE,Worksheet!I14,\"\")","v":""},{"$f":"IFERROR(IF(ISBLANK(Worksheet!$I14)=FALSE,Worksheet!Q14/Worksheet!$I14,Worksheet!R14/Worksheet!$J14),\"\")","v":""},{"$f":"IFERROR(IF(ISBLANK(Worksheet!$I14)=FALSE,Worksheet!O14/Worksheet!$I14,Worksheet!P14/Worksheet!$J14),\"\")","v":""},{"$f":"IFERROR(IF(ISBLANK(Worksheet!$I14)=FALSE,Worksheet!S14/Worksheet!$I14,Worksheet!T14/Worksheet!$J14),\"\")","v":""},{"$f":"IFERROR(IF(ISBLANK(Worksheet!$I14)=FALSE,Worksheet!U14/Worksheet!$I14,Worksheet!V14/Worksheet!$J14),\"\")","v":""},{"$f":"IFERROR(IF(ISBLANK(Worksheet!$I14)=FALSE,Worksheet!W14/Worksheet!$I14,Worksheet!X14/Worksheet!$J14),\"\")","v":""},null,null,null,{"$f":"IF(ISBLANK(Worksheet!J14)=FALSE,Worksheet!J14,\"\")","v":""},{"$f":"IF(Worksheet!$A$10=TRUE,\"Y\",\"N\")","v":"N"},{"$f":"IF(Worksheet!$A$11=TRUE,\"Y\",\"N\")","v":"N"},{"$f":"IF(Worksheet!$B$10=TRUE,\"Y\",\"N\")","v":"N"},{"$f":"IF(Worksheet!$B$11=TRUE,\"Y\",\"N\")","v":"N"},{"$f":"IFERROR(Worksheet!L14,\"\")","v":0}]
[{"$f":"IF(Worksheet!C15=\"C\",251,IF(Worksheet!C15=\"D\",307,\"\"))","v":""},{"$f":"Worksheet!D15","v":0},{"$f":"Worksheet!E15","v":0},null,null,null,null,{"$f":"Worksheet!K15","v":0},{"$f":"IF(ISBLANK(Worksheet!I15)=FALSE,Worksheet!I15,\"\")","v":""},{"$f":"IFERROR(IF(ISBLANK(Worksheet!$I15)=FALSE,Worksheet!Q15/Worksheet!$I15,Worksheet!R15/Worksheet!$J15),\"\")","v":""},{"$f":"IFERROR(IF(ISBLANK(Worksheet!$I15)=FALSE,Worksheet!O15/Worksheet!$I15,Worksheet!P15/Worksheet!$J15),\"\")","v":""},{"$f":"IFERROR(IF(ISBLANK(Worksheet!$I15)=FALSE,Worksheet!S15/Worksheet!$I15,Worksheet!T15/Worksheet!$J15),\"\")","v":""},{"$f":"IFERROR(IF(ISBLANK(Worksheet!$I15)=FALSE,Worksheet!U15/Worksheet!$I15,Worksheet!V15/Worksheet!$J15),\"\")","v":""},{"$f":"IFERROR(IF(ISBLANK(Worksheet!$I15)=FALSE,Worksheet!W15/Worksheet!$I15,Worksheet!X15/Worksheet!$J15),\"\")","v":""},null,null,null,{"$f":"IF(ISBLANK(Worksheet!J15)=FALSE,Worksheet!J15,\"\")","v":""},{"$f":"IF(Worksheet!$A$10=TRUE,\"Y\",\"N\")","v":"N"},{"$f":"IF(Worksheet!$A$11=TRUE,\"Y\",\"N\")","v":"N"},{"$f":"IF(Worksheet!$B$10=TRUE,\"Y\",\"N\")","v":"N"},{"$f":"IF(Worksheet!$B$11=TRUE,\"Y\",\"N\")","v":"N"},{"$f":"IFERROR(Worksheet!L15,\"\")","v":0}]
[{"$f":"IF(Worksheet!C16=\"C\",251,IF(Worksheet!C16=\"D\",307,\"\"))","v":""},{"$f":"Worksheet!D16","v":0},{"$f":"Worksheet!E16","v":0},null,null,null,null,{"$f":"Worksheet!K16","v":0},{"$f":"IF(ISBLANK(Worksheet!I16)=FALSE,Worksheet!I16,\"\")","v":""},{"$f":"IFERROR(IF(ISBLANK(Worksheet!$I16)=FALSE,Worksheet!Q16/Worksheet!$I16,Worksheet!R16/Worksheet!$J16),\"\")","v":""},{"$f":"IFERROR(IF(ISBLANK(Worksheet!$I16)=FALSE,Worksheet!O16/Worksheet!$I16,Worksheet!P16/Worksheet!$J16),\"\")","v":""},{"$f":"IFERROR(IF(ISBLANK(Worksheet!$I16)=FALSE,Worksheet!S16/Worksheet!$I16,Worksheet!T16/Worksheet!$J16),\"\")","v":""},{"$f":"IFERROR(IF(ISBLANK(Worksheet!$I16)=FALSE,Worksheet!U16/Worksheet!$I16,Worksheet!V16/Worksheet!$J16),\"\")","v":""},{"$f":"IFERROR(IF(ISBLANK(Worksheet!$I16)=FALSE,Worksheet!W16/Worksheet!$I16,Worksheet!X16/Worksheet!$J16),\"\")","v":""},null,null,null,{"$f":"IF(ISBLANK(Worksheet!J16)=FALSE,Worksheet!J16,\"\")","v":""},{"$f":"IF(Worksheet!$A$10=TRUE,\"Y\",\"N\")","v":"N"},{"$f":"IF(Worksheet!$A$11=TRUE,\"Y\",\"N\")","v":"N"},{"$f":"IF(Worksheet!$B$10=TRUE,\"Y\",\"N\")","v":"N"},{"$f":"IF(Worksheet!$B$11=TRUE,\"Y\",\"N\")","v":"N"},{"$f":"IFERROR(Worksheet!L16,\"\")","v":0}]
[{"$f":"IF(Worksheet!C17=\"C\",251,IF(Worksheet!C17=\"D\",307,\"\"))","v":""},{"$f":"Worksheet!D17","v":0},{"$f":"Worksheet!E17","v":0},null,null,null,null,{"$f":"Worksheet!K17","v":0},{"$f":"IF(ISBLANK(Worksheet!I17)=FALSE,Worksheet!I17,\"\")","v":""},{"$f":"IFERROR(IF(ISBLANK(Worksheet!$I17)=FALSE,Worksheet!Q17/Worksheet!$I17,Worksheet!R17/Worksheet!$J17),\"\")","v":""},{"$f":"IFERROR(IF(ISBLANK(Worksheet!$I17)=FALSE,Worksheet!O17/Worksheet!$I17,Worksheet!P17/Worksheet!$J17),\"\")","v":""},{"$f":"IFERROR(IF(ISBLANK(Worksheet!$I17)=FALSE,Worksheet!S17/Worksheet!$I17,Worksheet!T17/Worksheet!$J17),\"\")","v":""},{"$f":"IFERROR(IF(ISBLANK(Worksheet!$I17)=FALSE,Worksheet!U17/Worksheet!$I17,Worksheet!V17/Worksheet!$J17),\"\")","v":""},{"$f":"IFERROR(IF(ISBLANK(Worksheet!$I17)=FALSE,Worksheet!W17/Worksheet!$I17,Worksheet!X17/Worksheet!$J17),\"\")","v":""},null,null,null,{"$f":"IF(ISBLANK(Worksheet!J17)=FALSE,Worksheet!J17,\"\")","v":""},{"$f":"IF(Worksheet!$A$10=TRUE,\"Y\",\"N\")","v":"N"},{"$f":"IF(Worksheet!$A$11=TRUE,\"Y\",\"N\")","v":"N"},{"$f":"IF(Worksheet!$B$10=TRUE,\"Y\",\"N\")","v":"N"},{"$f":"IF(Worksheet!$B$11=TRUE,\"Y\",\"N\")","v":"N"},{"$f":"IFERROR(Worksheet!L17,\"\")","v":0}]
[{"$f":"IF(Worksheet!C18=\"C\",251,IF(Worksheet!C18=\"D\",307,\"\"))","v":""},{"$f":"Worksheet!D18","v":0},{"$f":"Worksheet!E18","v":0},null,null,null,null,{"$f":"Worksheet!K18","v":0},{"$f":"IF(ISBLANK(Worksheet!I18)=FALSE,Worksheet!I18,\"\")","v":""},{"$f":"IFERROR(IF(ISBLANK(Worksheet!$I18)=FALSE,Worksheet!Q18/Worksheet!$I18,Worksheet!R18/Worksheet!$J18),\"\")","v":""},{"$f":"IFERROR(IF(ISBLANK(Worksheet!$I18)=FALSE,Worksheet!O18/Worksheet!$I18,Worksheet!P18/Worksheet!$J18),\"\")","v":""},{"$f":"IFERROR(IF(ISBLANK(Worksheet!$I18)=FALSE,Worksheet!S18/Worksheet!$I18,Worksheet!T18/Worksheet!$J18),\"\")","v":""},{"$f":"IFERROR(IF(ISBLANK(Worksheet!$I18)=FALSE,Worksheet!U18/Worksheet!$I18,Worksheet!V18/Worksheet!$J18),\"\")","v":""},{"$f":"IFERROR(IF(ISBLANK(Worksheet!$I18)=FALSE,Worksheet!W18/Worksheet!$I18,Worksheet!X18/Worksheet!$J18),\"\")","v":""},null,null,null,{"$f":"IF(ISBLANK(Worksheet!J18)=FALSE,Worksheet!J18,\"\")","v":""},{"$f":"IF(Worksheet!$A$10=TRUE,\"Y\",\"N\")","v":"N"},{"$f":"IF(Worksheet!$A$11=TRUE,\"Y\",\"N\")","v":"N"},{"$f":"IF(Worksheet!$B$10=TRUE,\"Y\",\"N\")","v":"N"},{"$f":"IF(Worksheet!$B$11=TRUE,\"Y\",\"N\")","v":"N"},{"$f":"IFERROR(Worksheet!L18,\"\")","v":0}]
[{"$f":"IF(Worksheet!C19=\"C\",251,IF(Worksheet!C19=\"D\",307,\"\"))","v":""},{"$f":"Worksheet!D19","v":0},{"$f":"Worksheet!E19","v":0},null,null,null,null,{"$f":"Worksheet!K19","v":0},{"$f":"IF(ISBLANK(Worksheet!I19)=FALSE,Worksheet!I19,\"\")","v":""},{"$f":"IFERROR(IF(ISBLANK(Worksheet!$I19)=FALSE,Worksheet!Q19/Worksheet!$I19,Worksheet!R19/Worksheet!$J19),\"\")","v":""},{"$f":"IFERROR(IF(ISBLANK(Worksheet!$I19)=FALSE,Worksheet!O19/Worksheet!$I19,Worksheet!P19/Worksheet!$J19),\"\")","v":""},{"$f":"IFERROR(IF(ISBLANK(Worksheet!$I19)=FALSE,Worksheet!S19/Worksheet!$I19,Worksheet!T19/Worksheet!$J19),\"\")","v":""},{"$f":"IFERROR(IF(ISBLANK(Worksheet!$I19)=FALSE,Worksheet!U19/Worksheet!$I19,Worksheet!V19/Worksheet!$J19),\"\")","v":""},{"$f":"IFERROR(IF(ISBLANK(Worksheet!$I19)=FALSE,Worksheet!W19/Worksheet!$I19,Worksheet!X19/Worksheet!$J19),\"\")","v":""},null,null,null,{"$f":"IF(ISBLANK(Worksheet!J19)=FALSE,Worksheet!J19,\"\")","v":""},{"$f":"IF(Worksheet!$A$10=TRUE,\"Y\",\"N\")","v":"N"},{"$f":"IF(Worksheet!$A$11=TRUE,\"Y\",\"N\")","v":"N"},{"$f":"IF(Worksheet!$B$10=TRUE,\"Y\",\"N\")","v":"N"},{"$f":"IF(Worksheet!$B$11=TRUE,\"Y\",\"N\")","v":"N"},{"$f":"IFERROR(Worksheet!L19,\"\")","v":0}]
[{"$f":"IF(Worksheet!C20=\"C\",251,IF(Worksheet!C20=\"D\",307,\"\"))","v":""},{"$f":"Worksheet!D20","v":0},{"$f":"Worksheet!E20","v":0},null,null,null,null,{"$f":"Worksheet!K20","v":0},{"$f":"IF(ISBLANK(Worksheet!I20)=FALSE,Worksheet!I20,\"\")","v":""},{"$f":"IFERROR(IF(ISBLANK(Worksheet!$I20)=FALSE,Worksheet!Q20/Worksheet!$I20,Worksheet!R20/Worksheet!$J20),\"\")","v":""},{"$f":"IFERROR(IF(ISBLANK(Worksheet!$I20)=FALSE,Worksheet!O20/Worksheet!$I20,Worksheet!P20/Worksheet!$J20),\"\")","v":""},{"$f":"IFERROR(IF(ISBLANK(Worksheet!$I20)=FALSE,Worksheet!S20/Worksheet!$I20,Worksheet!T20/Worksheet!$J20),\"\")","v":""},{"$f":"IFERROR(IF(ISBLANK(Worksheet!$I20)=FALSE,Worksheet!U20/Worksheet!$I20,Worksheet!V20/Worksheet!$J20),\"\")","v":""},{"$f":"IFERROR(IF(ISBLANK(Worksheet!$I20)=FALSE,Worksheet!W20/Worksheet!$I20,Worksheet!X20/Worksheet!$J20),\"\")","v":""},null,null,null,{"$f":"IF(ISBLANK(Worksheet!J20)=FALSE,Worksheet!J20,\"\")","v":""},{"$f":"IF(Worksheet!$A$10=TRUE,\"Y\",\"N\")","v":"N"},{"$f":"IF(Worksheet!$A$11=TRUE,\"Y\",\"N\")","v":"N"},{"$f":"IF(Worksheet!$B$10=TRUE,\"Y\",\"N\")","v":"N"},{"$f":"IF(Worksheet!$B$11=TRUE,\"Y\",\"N\")","v":"N"},{"$f":"IFERROR(Worksheet!L20,\"\")","v":0}]
[{"$f":"IF(Worksheet!C21=\"C\",251,IF(Worksheet!C21=\"D\",307,\"\"))","v":""},{"$f":"Worksheet!D21","v":0},{"$f":"Worksheet!E21","v":0},null,null,null,null,{"$f":"Worksheet!K21","v":0},{"$f":"IF(ISBLANK(Worksheet!I21)=FALSE,Worksheet!I21,\"\")","v":""},{"$f":"IFERROR(IF(ISBLANK(Worksheet!$I21)=FALSE,Worksheet!Q21/Worksheet!$I21,Worksheet!R21/Worksheet!$J21),\"\")","v":""},{"$f":"IFERROR(IF(ISBLANK(Worksheet!$I21)=FALSE,Worksheet!O21/Worksheet!$I21,Worksheet!P21/Worksheet!$J21),\"\")","v":""},{"$f":"IFERROR(IF(ISBLANK(Worksheet!$I21)=FALSE,Worksheet!S21/Worksheet!$I21,Worksheet!T21/Worksheet!$J21),\"\")","v":""},{"$f":"IFERROR(IF(ISBLANK(Worksheet!$I21)=FALSE,Worksheet!U21/Worksheet!$I21,Worksheet!V21/Worksheet!$J21),\"\")","v":""},{"$f":"IFERROR(IF(ISBLANK(Worksheet!$I21)=FALSE,Worksheet!W21/Worksheet!$I21,Worksheet!X21/Worksheet!$J21),\"\")","v":""},null,null,null,{"$f":"IF(ISBLANK(Worksheet!J21)=FALSE,Worksheet!J21,\"\")","v":""},{"$f":"IF(Worksheet!$A$10=TRUE,\"Y\",\"N\")","v":"N"},{"$f":"IF(Worksheet!$A$11=TRUE,\"Y\",\"N\")","v":"N"},{"$f":"IF(Worksheet!$B$10=TRUE,\"Y\",\"N\")","v":"N"},{"$f":"IF(Worksheet!$B$11=TRUE,\"Y\",\"N\")","v":"N"},{"$f":"IFERROR(Worksheet!L21,\"\")","v":0}]
[{"$f":"IF(Worksheet!C22=\"C\",251,IF(Worksheet!C22=\"D\",307,\"\"))","v":""},{"$f":"Worksheet!D22","v":0},{"$f":"Worksheet!E22","v":0},null,null,null,null,{"$f":"Worksheet!K22","v":0},{"$f":"IF(ISBLANK(Worksheet!I22)=FALSE,Worksheet!I22,\"\")","v":""},{"$f":"IFERROR(IF(ISBLANK(Worksheet!$I22)=FALSE,Worksheet!Q22/Worksheet!$I22,Worksheet!R22/Worksheet!$J22),\"\")","v":""},{"$f":"IFERROR(IF(ISBLANK(Worksheet!$I22)=FALSE,Worksheet!O22/Worksheet!$I22,Worksheet!P22/Worksheet!$J22),\"\")","v":""},{"$f":"IFERROR(IF(ISBLANK(Worksheet!$I22)=FALSE,Worksheet!S22/Worksheet!$I22,Worksheet!T22/Worksheet!$J22),\"\")","v":""},{"$f":"IFERROR(IF(ISBLANK(Worksheet!$I22)=FALSE,Worksheet!U22/Worksheet!$I22,Worksheet!V22/Worksheet!$J22),\"\")","v":""},{"$f":"IFERROR(IF(ISBLANK(Worksheet!$I22)=FALSE,Worksheet!W22/Worksheet!$I22,Worksheet!X22/Worksheet!$J22),\"\")","v":""},null,null,null,{"$f":"IF(ISBLANK(Worksheet!J22)=FALSE,Worksheet!J22,\"\")","v":""},{"$f":"IF(Worksheet!$A$10=TRUE,\"Y\",\"N\")","v":"N"},{"$f":"IF(Worksheet!$A$11=TRUE,\"Y\",\"N\")","v":"N"},{"$f":"IF(Worksheet!$B$10=TRUE,\"Y\",\"N\")","v":"N"},{"$f":"IF(Worksheet!$B$11=TRUE,\"Y\",\"N\")","v":"N"},{"$f":"IFERROR(Worksheet!L22,\"\")","v":0}]
[{"$f":"IF(Worksheet!C23=\"C\",251,IF(Worksheet!C23=\"D\",307,\"\"))","v":""},{"$f":"Worksheet!D23","v":0},{"$f":"Worksheet!E23","v":0},null,null,null,null,{"$f":"Worksheet!K23","v":0},{"$f":"IF(ISBLANK(Worksheet!I23)=FALSE,Worksheet!I23,\"\")","v":""},{"$f":"IFERROR(IF(ISBLANK(Worksheet!$I23)=FALSE,Worksheet!Q23/Worksheet!$I23,Worksheet!R23/Worksheet!$J23),\"\")","v":""},{"$f":"IFERROR(IF(ISBLANK(Worksheet!$I23)=FALSE,Worksheet!O23/Worksheet!$I23,Worksheet!P23/Worksheet!$J23),\"\")","v":""},{"$f":"IFERROR(IF(ISBLANK(Worksheet!$I23)=FALSE,Worksheet!S23/Worksheet!$I23,Worksheet!T23/Worksheet!$J23),\"\")","v":""},{"$f":"IFERROR(IF(ISBLANK(Worksheet!$I23)=FALSE,Worksheet!U23/Worksheet!$I23,Worksheet!V23/Worksheet!$J23),\"\")","v":""},{"$f":"IFERROR(IF(ISBLANK(Worksheet!$I23)=FALSE,Worksheet!W23/Worksheet!$I23,Worksheet!X23/Worksheet!$J23),\"\")","v":""},null,null,null,{"$f":"IF(ISBLANK(Worksheet!J23)=FALSE,Worksheet!J23,\"\")","v":""},{"$f":"IF(Worksheet!$A$10=TRUE,\"Y\",\"N\")","v":"N"},{"$f":"IF(Worksheet!$A$11=TRUE,\"Y\",\"N\")","v":"N"},{"$f":"IF(Worksheet!$B$10=TRUE,\"Y\",\"N\")","v":"N"},{"$f":"IF(Worksheet!$B$11=TRUE,\"Y\",\"N\")","v":"N"},{"$f":"IFERROR(Worksheet!L23,\"\")","v":0}]
[{"$f":"IF(Worksheet!C24=\"C\",251,IF(Worksheet!C24=\"D\",307,\"\"))","v":""},{"$f":"Worksheet!D24","v":0},{"$f":"Worksheet!E24","v":0},null,null,null,null,{"$f":"Worksheet!K24","v":0},{"$f":"IF(ISBLANK(Worksheet!I24)=FALSE,Worksheet!I24,\"\")","v":""},{"$f":"IFERROR(IF(ISBLANK(Worksheet!$I24)=FALSE,Worksheet!Q24/Worksheet!$I24,Worksheet!R24/Worksheet!$J24),\"\")","v":""},{"$f":"IFERROR(IF(ISBLANK(Worksheet!$I24)=FALSE,Worksheet!O24/Worksheet!$I24,Worksheet!P24/Worksheet!$J24),\"\")","v":""},{"$f":"IFERROR(IF(ISBLANK(Worksheet!$I24)=FALSE,Worksheet!S24/Worksheet!$I24,Worksheet!T24/Worksheet!$J24),\"\")","v":""},{"$f":"IFERROR(IF(ISBLANK(Worksheet!$I24)=FALSE,Worksheet!U24/Worksheet!$I24,Worksheet!V24/Worksheet!$J24),\"\")","v":""},{"$f":"IFERROR(IF(ISBLANK(Worksheet!$I24)=FALSE,Worksheet!W24/Worksheet!$I24,Worksheet!X24/Worksheet!$J24),\"\")","v":""},null,null,null,{"$f":"IF(ISBLANK(Worksheet!J24)=FALSE,Worksheet!J24,\"\")","v":""},{"$f":"IF(Worksheet!$A$10=TRUE,\"Y\",\"N\")","v":"N"},{"$f":"IF(Worksheet!$A$11=TRUE,\"Y\",\"N\")","v":"N"},{"$f":"IF(Worksheet!$B$10=TRUE,\"Y\",\"N\")","v":"N"},{"$f":"IF(Worksheet!$B$11=TRUE,\"Y\",\"N\")","v":"N"},{"$f":"IFERROR(Worksheet!L24,\"\")","v":0}]
[{"$f":"IF(Worksheet!C25=\"C\",251,IF(Worksheet!C25=\"D\",307,\"\"))","v":""},{"$f":"Worksheet!D25","v":0},{"$f":"Worksheet!E25","v":0},null,null,null,null,{"$f":"Worksheet!K25","v":0},{"$f":"IF(ISBLANK(Worksheet!I25)=FALSE,Worksheet!I25,\"\")","v":""},{"$f":"IFERROR(IF(ISBLANK(Worksheet!$I25)=FALSE,Worksheet!Q25/Worksheet!$I25,Worksheet!R25/Worksheet!$J25),\"\")","v":""},{"$f":"IFERROR(IF(ISBLANK(Worksheet!$I25)=FALSE,Worksheet!O25/Worksheet!$I25,Worksheet!P25/Worksheet!$J25),\"\")","v":""},{"$f":"IFERROR(IF(ISBLANK(Worksheet!$I25)=FALSE,Worksheet!S25/Worksheet!$I25,Worksheet!T25/Worksheet!$J25),\"\")","v":""},{"$f":"IFERROR(IF(ISBLANK(Worksheet!$I25)=FALSE,Worksheet!U25/Worksheet!$I25,Worksheet!V25/Worksheet!$J25),\"\")","v":""},{"$f":"IFERROR(IF(ISBLANK(Worksheet!$I25)=FALSE,Worksheet!W25/Worksheet!$I25,Worksheet!X25/Worksheet!$J25),\"\")","v":""},null,null,null,{"$f":"IF(ISBLANK(Worksheet!J25)=FALSE,Worksheet!J25,\"\")","v":""},{"$f":"IF(Worksheet!$A$10=TRUE,\"Y\",\"N\")","v":"N"},{"$f":"IF(Worksheet!$A$11=TRUE,\"Y\",\"N\")","v":"N"},{"$f":"IF(Worksheet!$B$10=TRUE,\"Y\",\"N\")","v":"N"},{"$f":"IF(Worksheet!$B$11=TRUE,\"Y\",\"N\")","v":"N"},{"$f":"IFERROR(Worksheet!L25,\"\")","v":0}]
[{"$f":"IF(Worksheet!C26=\"C\",251,IF(Worksheet!C26=\"D\",307,\"\"))","v":""},{"$f":"Worksheet!D26","v":0},{"$f":"Worksheet!E26","v":0},null,null,null,null,{"$f":"Worksheet!K26","v":0},{"$f":"IF(ISBLANK(Worksheet!I26)=FALSE,Worksheet!I26,\"\")","v":""},{"$f":"IFERROR(IF(ISBLANK(Worksheet!$I26)=FALSE,Worksheet!Q26/Worksheet!$I26,Worksheet!R26/Worksheet!$J26),\"\")","v":""},{"$f":"IFERROR(IF(ISBLANK(Worksheet!$I26)=FALSE,Worksheet!O26/Worksheet!$I26,Worksheet!P26/Worksheet!$J26),\"\")","v":""},{"$f":"IFERROR(IF(ISBLANK(Worksheet!$I26)=FALSE,Worksheet!S26/Worksheet!$I26,Worksheet!T26/Worksheet!$J26),\"\")","v":""},{"$f":"IFERROR(IF(ISBLANK(Worksheet!$I26)=FALSE,Worksheet!U26/Worksheet!$I26,Worksheet!V26/Worksheet!$J26),\"\")","v":""},{"$f":"IFERROR(IF(ISBLANK(Worksheet!$I26)=FALSE,Worksheet!W26/Worksheet!$I26,Worksheet!X26/Worksheet!$J26),\"\")","v":""},null,null,null,{"$f":"IF(ISBLANK(Worksheet!J26)=FALSE,Worksheet!J26,\"\")","v":""},{"$f":"IF(Worksheet!$A$10=TRUE,\"Y\",\"N\")","v":"N"},{"$f":"IF(Worksheet!$A$11=TRUE,\"Y\",\"N\")","v":"N"},{"$f":"IF(Worksheet!$B$10=TRUE,\"Y\",\"N\")","v":"N"},{"$f":"IF(Worksheet!$B$11=TRUE,\"Y\",\"N\")","v":"N"},{"$f":"IFERROR(Worksheet!L26,\"\")","v":0}]
[{"$f":"IF(Worksheet!C27=\"C\",251,IF(Worksheet!C27=\"D\",307,\"\"))","v":""},{"$f":"Worksheet!D27","v":0},{"$f":"Worksheet!E27","v":0},null,null,null,null,{"$f":"Worksheet!K27","v":0},{"$f":"IF(ISBLANK(Worksheet!I27)=FALSE,Worksheet!I27,\"\")","v":""},{"$f":"IFERROR(IF(ISBLANK(Worksheet!$I27)=FALSE,Worksheet!Q27/Worksheet!$I27,Worksheet!R27/Worksheet!$J27),\"\")","v":""},{"$f":"IFERROR(IF(ISBLANK(Worksheet!$I27)=FALSE,Worksheet!O27/Worksheet!$I27,Worksheet!P27/Worksheet!$J27),\"\")","v":""},{"$f":"IFERROR(IF(ISBLANK(Worksheet!$I27)=FALSE,Worksheet!S27/Worksheet!$I27,Worksheet!T27/Worksheet!$J27),\"\")","v":""},{"$f":"IFERROR(IF(ISBLANK(Worksheet!$I27)=FALSE,Worksheet!U27/Worksheet!$I27,Worksheet!V27/Worksheet!$J27),\"\")","v":""},{"$f":"IFERROR(IF(ISBLANK(Worksheet!$I27)=FALSE,Worksheet!W27/Worksheet!$I27,Worksheet!X27/Worksheet!$J27),\"\")","v":""},null,null,null,{"$f":"IF(ISBLANK(Worksheet!J27)=FALSE,Worksheet!J27,\"\")","v":""},{"$f":"IF(Worksheet!$A$10=TRUE,\"Y\",\"N\")","v":"N"},{"$f":"IF(Worksheet!$A$11=TRUE,\"Y\",\"N\")","v":"N"},{"$f":"IF(Worksheet!$B$10=TRUE,\"Y\",\"N\")","v":"N"},{"$f":"IF(Worksheet!$B$11=TRUE,\"Y\",\"N\")","v":"N"},{"$f":"IFERROR(Worksheet!L27,\"\")","v":0}]
[{"$f":"IF(Worksheet!C28=\"C\",251,IF(Worksheet!C28=\"D\",307,\"\"))","v":""},{"$f":"Worksheet!D28","v":0},{"$f":"Worksheet!E28","v":0},null,null,null,null,{"$f":"Worksheet!K28","v":0},{"$f":"IF(ISBLANK(Worksheet!I28)=FALSE,Worksheet!I28,\"\")","v":""},{"$f":"IFERROR(IF(ISBLANK(Worksheet!$I28)=FALSE,Worksheet!Q28/Worksheet!$I28,Worksheet!R28/Worksheet!$J28),\"\")","v":""},{"$f":"IFERROR(IF(ISBLANK(Worksheet!$I28)=FALSE,Worksheet!O28/Worksheet!$I28,Worksheet!P28/Worksheet!$J28),\"\")","v":""},{"$f":"IFERROR(IF(ISBLANK(Worksheet!$I28)=FALSE,Worksheet!S28/Worksheet!$I28,Worksheet!T28/Worksheet!$J28),\"\")","v":""},{"$f":"IFERROR(IF(ISBLANK(Worksheet!$I28)=FALSE,Worksheet!U28/Worksheet!$I28,Worksheet!V28/Worksheet!$J28),\"\")","v":""},{"$f":"IFERROR(IF(ISBLANK(Worksheet!$I28)=FALSE,Worksheet!W28/Worksheet!$I28,Worksheet!X28/Worksheet!$J28),\"\")","v":""},null,null,null,{"$f":"IF(ISBLANK(Worksheet!J28)=FALSE,Worksheet!J28,\"\")","v":""},{"$f":"IF(Worksheet!$A$10=TRUE,\"Y\",\"N\")","v":"N"},{"$f":"IF(Worksheet!$A$11=TRUE,\"Y\",\"N\")","v":"N"},{"$f":"IF(Worksheet!$B$10=TRUE,\"Y\",\"N\")","v":"N"},{"$f":"IF(Worksheet!$B$11=TRUE,\"Y\",\"N\")","v":"N"},{"$f":"IFERROR(Worksheet!L28,\"\")","v":0}]
[{"$f":"IF(Worksheet!C29=\"C\",251,IF(Worksheet!C29=\"D\",307,\"\"))","v":""},{"$f":"Worksheet!D29","v":0},{"$f":"Worksheet!E29","v":0},null,null,null,null,{"$f":"Worksheet!K29","v":0},{"$f":"IF(ISBLANK(Worksheet!I29)=FALSE,Worksheet!I29,\"\")","v":""},{"$f":"IFERROR(IF(ISBLANK(Worksheet!$I29)=FALSE,Worksheet!Q29/Worksheet!$I29,Worksheet!R29/Worksheet!$J29),\"\")","v":""},{"$f":"IFERROR(IF(ISBLANK(Worksheet!$I29)=FALSE,Worksheet!O29/Worksheet!$I29,Worksheet!P29/Worksheet!$J29),\"\")","v":""},{"$f":"IFERROR(IF(ISBLANK(Worksheet!$I29)=FALSE,Worksheet!S29/Worksheet!$I29,Worksheet!T29/Worksheet!$J29),\"\")","v":""},{"$f":"IFERROR(IF(ISBLANK(Worksheet!$I29)=FALSE,Worksheet!U29/Worksheet!$I29,Worksheet!V29/Worksheet!$J29),\"\")","v":""},{"$f":"IFERROR(IF(ISBLANK(Worksheet!$I29)=FALSE,Worksheet!W29/Worksheet!$I29,Worksheet!X29/Worksheet!$J29),\"\")","v":""},null,null,null,{"$f":"IF(ISBLANK(Worksheet!J29)=FALSE,Worksheet!J29,\"\")","v":""},{"$f":"IF(Worksheet!$A$10=TRUE,\"Y\",\"N\")","v":"N"},{"$f":"IF(Worksheet!$A$11=TRUE,\"Y\",\"N\")","v":"N"},{"$f":"IF(Worksheet!$B$10=TRUE,\"Y\",\"N\")","v":"N"},{"$f":"IF(Worksheet!$B$11=TRUE,\"Y\",\"N\")","v":"N"},{"$f":"IFERROR(Worksheet!L29,\"\")","v":0}]
[{"$f":"IF(Worksheet!C30=\"C\",251,IF(Worksheet!C30=\"D\",307,\"\"))","v":""},{"$f":"Worksheet!D30","v":0},{"$f":"Worksheet!E30","v":0},null,null,null,null,{"$f":"Worksheet!K30","v":0},{"$f":"IF(ISBLANK(Worksheet!I30)=FALSE,Worksheet!I30,\"\")","v":""},{"$f":"IFERROR(IF(ISBLANK(Worksheet!$I30)=FALSE,Worksheet!Q30/Worksheet!$I30,Worksheet!R30/Worksheet!$J30),\"\")","v":""},{"$f":"IFERROR(IF(ISBLANK(Worksheet!$I30)=FALSE,Worksheet!O30/Worksheet!$I30,Worksheet!P30/Worksheet!$J30),\"\")","v":""},{"$f":"IFERROR(IF(ISBLANK(Worksheet!$I30)=FALSE,Worksheet!S30/Worksheet!$I30,Worksheet!T30/Worksheet!$J30),\"\")","v":""},{"$f":"IFERROR(IF(ISBLANK(Worksheet!$I30)=FALSE,Worksheet!U30/Worksheet!$I30,Worksheet!V30/Worksheet!$J30),\"\")","v":""},{"$f":"IFERROR(IF(ISBLANK(Worksheet!$I30)=FALSE,Worksheet!W30/Worksheet!$I30,Worksheet!X30/Worksheet!$J30),\"\")","v":""},null,null,null,{"$f":"IF(ISBLANK(Worksheet!J30)=FALSE,Worksheet!J30,\"\")","v":""},{"$f":"IF(Worksheet!$A$10=TRUE,\"Y\",\"N\")","v":"N"},{"$f":"IF(Worksheet!$A$11=TRUE,\"Y\",\"N\")","v":"N"},{"$f":"IF(Worksheet!$B$10=TRUE,\"Y\",\"N\")","v":"N"},{"$f":"IF(Worksheet!$B$11=TRUE,\"Y\",\"N\")","v":"N"},{"$f":"IFERROR(Worksheet!L30,\"\")","v":0}]
[{"$f":"IF(Worksheet!C31=\"C\",251,IF(Worksheet!C31=\"D\",307,\"\"))","v":""},{"$f":"Worksheet!D31","v":0},{"$f":"Worksheet!E31","v":0},null,null,null,null,{"$f":"Worksheet!K31","v":0},{"$f":"IF(ISBLANK(Worksheet!I31)=FALSE,Worksheet!I31,\"\")","v":""},{"$f":"IFERROR(IF(ISBLANK(Worksheet!$I31)=FALSE,Worksheet!Q31/Worksheet!$I31,Worksheet!R31/Worksheet!$J31),\"\")","v":""},{"$f":"IFERROR(IF(ISBLANK(Worksheet!$I31)=FALSE,Worksheet!O31/Worksheet!$I31,Worksheet!P31/Worksheet!$J31),\"\")","v":""},{"$f":"IFERROR(IF(ISBLANK(Worksheet!$I31)=FALSE,Worksheet!S31/Worksheet!$I31,Worksheet!T31/Worksheet!$J31),\"\")","v":""},{"$f":"IFERROR(IF(ISBLANK(Worksheet!$I31)=FALSE,Worksheet!U31/Worksheet!$I31,Worksheet!V31/Worksheet!$J31),\"\")","v":""},{"$f":"IFERROR(IF(ISBLANK(Worksheet!$I31)=FALSE,Worksheet!W31/Worksheet!$I31,Worksheet!X31/Worksheet!$J31),\"\")","v":""},null,null,null,{"$f":"IF(ISBLANK(Worksheet!J31)=FALSE,Worksheet!J31,\"\")","v":""},{"$f":"IF(Worksheet!$A$10=TRUE,\"Y\",\"N\")","v":"N"},{"$f":"IF(Worksheet!$A$11=TRUE,\"Y\",\"N\")","v":"N"},{"$f":"IF(Worksheet!$B$10=TRUE,\"Y\",\"N\")","v":"N"},{"$f":"IF(Worksheet!$B$11=TRUE,\"Y\",\"N\")","v":"N"},{"$f":"IFERROR(Worksheet!L31,\"\")","v":0}]
[{"$f":"IF(Worksheet!C32=\"C\",251,IF(Worksheet!C32=\"D\",307,\"\"))","v":""},{"$f":"Worksheet!D32","v":0},{"$f":"Worksheet!E32","v":0},null,null,null,null,{"$f":"Worksheet!K32","v":0},{"$f":"IF(ISBLANK(Worksheet!I32)=FALSE,Worksheet!I32,\"\")","v":""},{"$f":"IFERROR(IF(ISBLANK(Worksheet!$I32)=FALSE,Worksheet!Q32/Worksheet!$I32,Worksheet!R32/Worksheet!$J32),\"\")","v":""},{"$f":"IFERROR(IF(ISBLANK(Worksheet!$I32)=FALSE,Worksheet!O32/Worksheet!$I32,Worksheet!P32/Worksheet!$J32),\"\")","v":""},{"$f":"IFERROR(IF(ISBLANK(Worksheet!$I32)=FALSE,Worksheet!S32/Worksheet!$I32,Worksheet!T32/Worksheet!$J32),\"\")","v":""},{"$f":"IFERROR(IF(ISBLANK(Worksheet!$I32)=FALSE,Worksheet!U32/Worksheet!$I32,Worksheet!V32/Worksheet!$J32),\"\")","v":""},{"$f":"IFERROR(IF(ISBLANK(Worksheet!$I32)=FALSE,Worksheet!W32/Worksheet!$I32,Worksheet!X32/Worksheet!$J32),\"\")","v":""},null,null,null,{"$f":"IF(ISBLANK(Worksheet!J32)=FALSE,Worksheet!J32,\"\")","v":""},{"$f":"IF(Worksheet!$A$10=TRUE,\"Y\",\"N\")","v":"N"},{"$f":"IF(Worksheet!$A$11=TRUE,\"Y\",\"N\")","v":"N"},{"$f":"IF(Worksheet!$B$10=TRUE,\"Y\",\"N\")","v":"N"},{"$f":"IF(Worksheet!$B$11=TRUE,\"Y\",\"N\")","v":"N"},{"$f":"IFERROR(Worksheet!L32,\"\")","v":0}]
[{"$f":"IF(Worksheet!C33=\"C\",251,IF(Worksheet!C33=\"D\",307,\"\"))","v":""},{"$f":"Worksheet!D33","v":0},{"$f":"Worksheet!E33","v":0},null,null,null,null,{"$f":"Worksheet!K33","v":0},{"$f":"IF(ISBLANK(Worksheet!I33)=FALSE,Worksheet!I33,\"\")","v":""},{"$f":"IFERROR(IF(ISBLANK(Worksheet!$I33)=FALSE,Worksheet!Q33/Worksheet!$I33,Worksheet!R33/Worksheet!$J33),\"\")","v":""},{"$f":"IFERROR(IF(ISBLANK(Worksheet!$I33)=FALSE,Worksheet!O33/Worksheet!$I33,Worksheet!P33/Worksheet!$J33),\"\")","v":""},{"$f":"IFERROR(IF(ISBLANK(Worksheet!$I33)=FALSE,Worksheet!S33/Worksheet!$I33,Worksheet!T33/Worksheet!$J33),\"\")","v":""},{"$f":"IFERROR(IF(ISBLANK(Worksheet!$I33)=FALSE,Worksheet!U33/Worksheet!$I33,Worksheet!V33/Worksheet!$J33),\"\")","v":""},{"$f":"IFERROR(IF(ISBLANK(Worksheet!$I33)=FALSE,Worksheet!W33/Worksheet!$I33,Worksheet!X33/Worksheet!$J33),\"\")","v":""},null,null,null,{"$f":"IF(ISBLANK(Worksheet!J33)=FALSE,Worksheet!J33,\"\")","v":""},{"$f":"IF(Worksheet!$A$10=TRUE,\"Y\",\"N\")","v":"N"},{"$f":"IF(Worksheet!$A$11=TRUE,\"Y\",\"N\")","v":"N"},{"$f":"IF(Worksheet!$B$10=TRUE,\"Y\",\"N\")","v":"N"},{"$f":"IF(Worksheet!$B$11=TRUE,\"Y\",\"N\")","v":"N"},{"$f":"IFERROR(Worksheet!L33,\"\")","v":0}]
[{"$f":"IF(Worksheet!C34=\"C\",251,IF(Worksheet!C34=\"D\",307,\"\"))","v":""},{"$f":"Worksheet!D34","v":0},{"$f":"Worksheet!E34","v":0},null,null,null,null,{"$f":"Worksheet!K34","v":0},{"$f":"IF(ISBLANK(Worksheet!I34)=FALSE,Worksheet!I34,\"\")","v":""},{"$f":"IFERROR(IF(ISBLANK(Worksheet!$I34)=FALSE,Worksheet!Q34/Worksheet!$I34,Worksheet!R34/Worksheet!$J34),\"\")","v":""},{"$f":"IFERROR(IF(ISBLANK(Worksheet!$I34)=FALSE,Worksheet!O34/Worksheet!$I34,Worksheet!P34/Worksheet!$J34),\"\")","v":""},{"$f":"IFERROR(IF(ISBLANK(Worksheet!$I34)=FALSE,Worksheet!S34/Worksheet!$I34,Worksheet!T34/Worksheet!$J34),\"\")","v":""},{"$f":"IFERROR(IF(ISBLANK(Worksheet!$I34)=FALSE,Worksheet!U34/Worksheet!$I34,Worksheet!V34/Worksheet!$J34),\"\")","v":""},{"$f":"IFERROR(IF(ISBLANK(Worksheet!$I34)=FALSE,Worksheet!W34/Worksheet!$I34,Worksheet!X34/Worksheet!$J34),\"\")","v":""},null,null,null,{"$f":"IF(ISBLANK(Worksheet!J34)=FALSE,Worksheet!J34,\"\")","v":""},{"$f":"IF(Worksheet!$A$10=TRUE,\"Y\",\"N\")","v":"N"},{"$f":"IF(Worksheet!$A$11=TRUE,\"Y\",\"N\")","v":"N"},{"$f":"IF(Worksheet!$B$10=TRUE,\"Y\",\"N\")","v":"N"},{"$f":"IF(Worksheet!$B$11=TRUE,\"Y\",\"N\")","v":"N"},{"$f":"IFERROR(Worksheet!L34,\"\")","v":0}]
[{"$f":"IF(Worksheet!C35=\"C\",251,IF(Worksheet!C35=\"D\",307,\"\"))","v":""},{"$f":"Worksheet!D35","v":0},{"$f":"Worksheet!E35","v":0},null,null,null,null,{"$f":"Worksheet!K35","v":0},{"$f":"IF(ISBLANK(Worksheet!I35)=FALSE,Worksheet!I35,\"\")","v":""},{"$f":"IFERROR(IF(ISBLANK(Worksheet!$I35)=FALSE,Worksheet!Q35/Worksheet!$I35,Worksheet!R35/Worksheet!$J35),\"\")","v":""},{"$f":"IFERROR(IF(ISBLANK(Worksheet!$I35)=FALSE,Worksheet!O35/Worksheet!$I35,Worksheet!P35/Worksheet!$J35),\"\")","v":""},{"$f":"IFERROR(IF(ISBLANK(Worksheet!$I35)=FALSE,Worksheet!S35/Worksheet!$I35,Worksheet!T35/Worksheet!$J35),\"\")","v":""},{"$f":"IFERROR(IF(ISBLANK(Worksheet!$I35)=FALSE,Worksheet!U35/Worksheet!$I35,Worksheet!V35/Worksheet!$J35),\"\")","v":""},{"$f":"IFERROR(IF(ISBLANK(Worksheet!$I35)=FALSE,Worksheet!W35/Worksheet!$I35,Worksheet!X35/Worksheet!$J35),\"\")","v":""},null,null,null,{"$f":"IF(ISBLANK(Worksheet!J35)=FALSE,Worksheet!J35,\"\")","v":""},{"$f":"IF(Worksheet!$A$10=TRUE,\"Y\",\"N\")","v":"N"},{"$f":"IF(Worksheet!$A$11=TRUE,\"Y\",\"N\")","v":"N"},{"$f":"IF(Worksheet!$B$10=TRUE,\"Y\",\"N\")","v":"N"},{"$f":"IF(Worksheet!$B$11=TRUE,\"Y\",\"N\")","v":"N"},{"$f":"IFERROR(Worksheet!L35,\"\")","v":0}]
[{"$f":"IF(Worksheet!C36=\"C\",251,IF(Worksheet!C36=\"D\",307,\"\"))","v":""},{"$f":"Worksheet!D36","v":0},{"$f":"Worksheet!E36","v":0},null,null,null,null,{"$f":"Worksheet!K36","v":0},{"$f":"IF(ISBLANK(Worksheet!I36)=FALSE,Worksheet!I36,\"\")","v":""},{"$f":"IFERROR(IF(ISBLANK(Worksheet!$I36)=FALSE,Worksheet!Q36/Worksheet!$I36,Worksheet!R36/Worksheet!$J36),\"\")","v":""},{"$f":"IFERROR(IF(ISBLANK(Worksheet!$I36)=FALSE,Worksheet!O36/Worksheet!$I36,Worksheet!P36/Worksheet!$J36),\"\")","v":""},{"$f":"IFERROR(IF(ISBLANK(Worksheet!$I36)=FALSE,Worksheet!S36/Worksheet!$I36,Worksheet!T36/Worksheet!$J36),\"\")","v":""},{"$f":"IFERROR(IF(ISBLANK(Worksheet!$I36)=FALSE,Worksheet!U36/Worksheet!$I36,Worksheet!V36/Worksheet!$J36),\"\")","v":""},{"$f":"IFERROR(IF(ISBLANK(Worksheet!$I36)=FALSE,Worksheet!W36/Worksheet!$I36,Worksheet!X36/Worksheet!$J36),\"\")","v":""},null,null,null,{"$f":"IF(ISBLANK(Worksheet!J36)=FALSE,Worksheet!J36,\"\")","v":""},{"$f":"IF(Worksheet!$A$10=TRUE,\"Y\",\"N\")","v":"N"},{"$f":"IF(Worksheet!$A$11=TRUE,\"Y\",\"N\")","v":"N"},{"$f":"IF(Worksheet!$B$10=TRUE,\"Y\",\"N\")","v":"N"},{"$f":"IF(Worksheet!$B$11=TRUE,\"Y\",\"N\")","v":"N"},{"$f":"IFERROR(Worksheet!L36,\"\")","v":0}]
[{"$f":"IF(Worksheet!C37=\"C\",251,IF(Worksheet!C37=\"D\",307,\"\"))","v":""},{"$f":"Worksheet!D37","v":0},{"$f":"Worksheet!E37","v":0},null,null,null,null,{"$f":"Worksheet!K37","v":0},{"$f":"IF(ISBLANK(Worksheet!I37)=FALSE,Worksheet!I37,\"\")","v":""},{"$f":"IFERROR(IF(ISBLANK(Worksheet!$I37)=FALSE,Worksheet!Q37/Worksheet!$I37,Worksheet!R37/Worksheet!$J37),\"\")","v":""},{"$f":"IFERROR(IF(ISBLANK(Worksheet!$I37)=FALSE,Worksheet!O37/Worksheet!$I37,Worksheet!P37/Worksheet!$J37),\"\")","v":""},{"$f":"IFERROR(IF(ISBLANK(Worksheet!$I37)=FALSE,Worksheet!S37/Worksheet!$I37,Worksheet!T37/Worksheet!$J37),\"\")","v":""},{"$f":"IFERROR(IF(ISBLANK(Worksheet!$I37)=FALSE,Worksheet!U37/Worksheet!$I37,Worksheet!V37/Worksheet!$J37),\"\")","v":""},{"$f":"IFERROR(IF(ISBLANK(Worksheet!$I37)=FALSE,Worksheet!W37/Worksheet!$I37,Worksheet!X37/Worksheet!$J37),\"\")","v":""},null,null,null,{"$f":"IF(ISBLANK(Worksheet!J37)=FALSE,Worksheet!J37,\"\")","v":""},{"$f":"IF(Worksheet!$A$10=TRUE,\"Y\",\"N\")","v":"N"},{"$f":"IF(Worksheet!$A$11=TRUE,\"Y\",\"N\")","v":"N"},{"$f":"IF(Worksheet!$B$10=TRUE,\"Y\",\"N\")","v":"N"},{"$f":"IF(Worksheet!$B$11=TRUE,\"Y\",\"N\")","v":"N"},{"$f":"IFERROR(Worksheet!L37,\"\")","v":0}]
[{"$f":"IF(Worksheet!C38=\"C\",251,IF(Worksheet!C38=\"D\",307,\"\"))","v":""},{"$f":"Worksheet!D38","v":0},{"$f":"Worksheet!E38","v":0},null,null,null,null,{"$f":"Worksheet!K38","v":0},{"$f":"IF(ISBLANK(Worksheet!I38)=FALSE,Worksheet!I38,\"\")","v":""},{"$f":"IFERROR(IF(ISBLANK(Worksheet!$I38)=FALSE,Worksheet!Q38/Worksheet!$I38,Worksheet!R38/Worksheet!$J38),\"\")","v":""},{"$f":"IFERROR(IF(ISBLANK(Worksheet!$I38)=FALSE,Worksheet!O38/Worksheet!$I38,Worksheet!P38/Worksheet!$J38),\"\")","v":""},{"$f":"IFERROR(IF(ISBLANK(Worksheet!$I38)=FALSE,Worksheet!S38/Worksheet!$I38,Worksheet!T38/Worksheet!$J38),\"\")","v":""},{"$f":"IFERROR(IF(ISBLANK(Worksheet!$I38)=FALSE,Worksheet!U38/Worksheet!$I38,Worksheet!V38/Worksheet!$J38),\"\")","v":""},{"$f":"IFERROR(IF(ISBLANK(Worksheet!$I38)=FALSE,Worksheet!W38/Worksheet!$I38,Worksheet!X38/Worksheet!$J38),\"\")","v":""},null,null,null,{"$f":"IF(ISBLANK(Worksheet!J38)=FALSE,Worksheet!J38,\"\")","v":""},{"$f":"IF(Worksheet!$A$10=TRUE,\"Y\",\"N\")","v":"N"},{"$f":"IF(Worksheet!$A$11=TRUE,\"Y\",\"N\")","v":"N"},{"$f":"IF(Worksheet!$B$10=TRUE,\"Y\",\"N\")","v":"N"},{"$f":"IF(Worksheet!$B$11=TRUE,\"Y\",\"N\")","v":"N"},{"$f":"IFERROR(Worksheet!L38,\"\")","v":0}]

{"sheet":"Version","index":3,"n_rows":12,"n_cols":2,"rows_kept":12,"cut":false,"hidden":true,"merged":[]}
[13]
[]
["Log"]
["2007-10-02","Added project information in rows 6-10"]
["2007-01-07","Fixed Savings Calculations to take quantity into account"]
["2008-01-08","Updated baseline efficiencies to comply with new protocol"]
["2008-12-01","Updated for compatability with measure tracking"]
["2012-01-13","no change for 2012"]
["2013-07-09","no change for V7, skipped V6"]
["2013-08-05","fixed export tab savings cells (extra $ signs)"]
["2018-06-21","Updated to align with FY19 Protocols"]
["2019-07-01","Added Enhanced Incentive Eligibility Section and Updated for FY20 Program"]